Workbook

Sheet Main
B2: Rabail Power Cable Design Tool (V1.0) Developed by Rabail Technologies
B3: Input Data | E3: Results
B4: HP | C4: 5.50 | E4: Safety Factor | F4: =C18 -> Motors (continuous) | G4: =VLOOKUP(C18,Data!A123:C127,3,FALSE) -> 1.25
B5: Voltage (V) | C5: 400.00 | E5: Ambient Temp Factor | F5: =C17 -> 45 | G5: =IF(C15="PVC",VLOOKUP(C17,Data!A100:B107,2,FALSE),VLOOKUP(C17,Data!A110:B119,2,FALSE)) -> 0.82
B6: Phase | C6: Three Phase | E6: Installation Factor, Fin | F6: =C9 -> Free air | G6: =VLOOKUP($C$9,Data!$A$85:$C$89,3,FALSE) -> 1.00
B7: Efficiency (Decimal) | C7: 0.85 | E7: Grouping Factor, Fgr | F7: =C10 -> 2 | G7: =IF(C18="solar DC",0.75,IF($C$10>12,0.5,(VLOOKUP($C$10,Data!$A$33:$B$44,2,FALSE)))) -> 0.80
B8: Power Factor (Decimal) | C8: 0.85 | E8: Start/Hr, Fs | F8: =C11 -> 1 | G8: =IF(C18="Solar DC","N/A for Sol dc",IF($C$11>30,1.4,(VLOOKUP($C$11,Data!$A$50:$C$79,3,FALSE)))) -> 1.00
B9: Installation Method | C9: Free air | E9: Motor Start Multiplier, Msm | F9: =C16 -> DOL | G9: =IF(C18="solar dc","N/A for Sol dc",IF($C$6="Single Phase",4,VLOOKUP(C16,Data!A93:B96,2,FALSE))) -> 6.00
B10: Nos. of Cable in Conduit/Burried Togther (Nos) | C10: 2.00 | E10: Full Load Current, FLC | F10: Amp | G10: =IF(C18="Solar DC",C19*C21,IF($C$6="three phase",($C$4*746)/($C$7*$C$8*$C$5*SQRT(3)),(($C$4*746)/($C$7*$C$8*$C$5)))) -> 8.20
B11: Nos. of Starts/hr (important due to inrush current) | C11: 1.00 | E11: Design Current, FLC xSFxFs | F11: Amp | G11: =IF(C18="Solar DC",G10*G4,G10*G8*G4) -> 10.25
B12: Cable Length (m) | C12: 40.00 | E12: Inrush Current, FLCxMsm | F12: Amp | G12: =IF(C18="Solar DC","N/A for Sol dc",G10*G9) -> 49.18
B13: Selected Cable (mm²) | C13: 2.50 | E13: Required Ampacity, AMPr | F13: Amp | G13: =G11/G5/G6/G7 -> 15.62
B14: Cable Material | C14: Copper | E14: Running Voltage Drop, VDr (V) | F14: Volt | G14: =IF(AND(C14="Copper",C18="Solar DC",C21>=1),2*C12*G11*0.0175/C13,IF(AND(C14="Copper",C18="Solar DC",C21<=0),"Nos of Array Shall be atleast 1",IF(AND(C18="Solar DC",C14<>"Copper"),"Select Copper Cable for Solar",IF(AND($C$6="three phase",$C$14="copper"),SQRT(3)*$C$12*$G$11*0.0175/$C$13,IF(AND($C$6="three phase",$C$14="aluminium"),SQRT(3)*$C$12*$G$11*0.0282/$C$13,IF(AND($C$6="single phase",$C$14="copper"),2*$G$11*$C$12*0.0175/$C$13,IF(AND($C$6="single phase",$C$14="almunium"),2*$G$11*$C$12*0.0282/$C$13,0))))))) -> 4.969
B15: Insulation Material | C15: PVC | E15: Running VDr % | F15: =IF(C18="Solar DC","Keep it below 2%","Keep it 3% to 5%. 3% is Best") -> Keep it 3% to 5%. 3% is Best | G15: =IF(G14="Select Copper Cable for Solar","Select Copper Cable for Solar",IF(G14="Nos of Array Shall be atleast 1","Nos of Array Shall be atleast 1",IF(C18="Solar DC",G14/C20,G14/C5))) -> 1.24%
B16: Motor Starting Method | C16: DOL | E16: Starting Voltage Drop, VDs (V) | F16: Volt | G16: =IF(C18="Solar DC","N/A for Sol dc",IF(AND($C$6="three phase",$C$14="copper"),SQRT(3)*$C$12*$G$12*0.0175/$C$13,IF(AND($C$6="three phase",$C$14="aluminium"),SQRT(3)*$C$12*$G$12*0.0282/$C$13,IF(AND($C$6="single phase",$C$14="copper"),2*$G$12*$C$12*0.0175/$C$13,IF(AND($C$6="single phase",$C$14="almunium"),2*$G$12*$C$12*0.0282/$C$13,0))))) -> 23.851
B17: Ambeint Temp (Use 50 Deg C for Pakistan) | C17: 45 | E17: Starting VDs % | F17: Keep< 10% | G17: =IF(C18="Solar DC","N/A for Sol dc",G16/C5) -> 5.96%
B18: Load Type | C18: Motors (continuous) | E18: Available Ampacity, AMPa | F18: Amp | G18: =IF(AND($C$14="copper",$C$15="pvc"),VLOOKUP(C13,Data!$A$2:$C$14,2,FALSE),IF(AND($C$14="copper",$C$15="xlpe"),VLOOKUP($C$13,Data!$A$2:$C$14,3,FALSE),IF(AND($C$14="aluminium",$C$15="pvc"),VLOOKUP($C$13,Data!$A$18:$C$29,2,FALSE),VLOOKUP($C$13,Data!$A$18:$C$29,3,FALSE)))) -> 20.00
B19: Solar Panel Short Circuit Current, Isc | C19: 8.00 | E19: Difference of AMPa & AMPr | F19: Must >= 0 | G19: =G18-G13 -> 4.38
B20: Single Array Open Circuit Voltage, Voc | C20: 600.00 | E20: Ampacity Status | F20: Must = Pass | G20: =IF(G18="n/a","Fail (Cable Size Not Available)",IF($G$18>=$G$13,"PASS","FAIL")) -> PASS
B21: Nos. of Arrays | C21: 1.00 | E21: Overall Status | F21: Must = Pass | G21: =IF(AND(C18="Solar DC",G15<2%,G20="PASS"),"PASS",IF(AND(G15<=5%,G17<=10%,G20="PASS"),"PASS","FAIL")) -> PASS
C22: Conclusion | E22: =IF(G21="PASS",IF($C$18="Solar DC",CONCATENATE("Solar Cable Voltage Rating Shall be Above ",$C$20," Volts."," Use ",$C$14,$C$15," Cable of ",$C$13," Sq mm, ",$C$12," mtr Long"),IF(AND($C$18<>"Solar DC",$C$6="Single Phase",$C$5<=230),CONCATENATE("For Single Phase ",$C$5," Volts System Use ",$C$14,$C$15,", atleast 300/500 Volt, 2 Core Cable, ",$C$13," Sq mm, ",$C$12," mtr Long"),IF(AND($C$18<>"Solar DC",$C$6="Three Phase",$C$5>=300,$C$5<=455),CONCATENATE("For Three Phase ",$C$5," Volts System Use ",$C$14,$C$15,", atleast 450/750 Volt, 3 Core Cable, ",$C$13," Sq mm, ",$C$12," mtr Long"),"Check Cable Voltage or Phase or Load Type"))),IF(AND(G21="FAIL",C18="Solar DC",G14<>"Nos of Array Shall be atleast 1"),"Selected Cable is NOT Suitable for Required Solar System, Please Redesign",IF(G14="Nos of Array Shall be atleast 1","Please Enter Nos of Arrays",CONCATENATE("Selected ",$C$14,$C$15," Cable of Diameter ",$C$13,"sq mm is NOT Suitable for ",$C$4," HP and ",$C$12," mtr Length. Redesign Please.")))) -> For Three Phase 400 Volts System Use CopperPVC, atleast 450/750 Volt, 3 Core Cable, 2.5 Sq mm, 40 mtr Long

Sheet Data (hidden)
A1: Ampacity
A2: Size (mm²) | B2: Copper (A)pvc | C2: Copper (A) xlpe
A3: 1.00 | B3: 11.00 | C3: 14.00
A4: 1.50 | B4: 14.00 | C4: 18.00
A5: 2.50 | B5: 20.00 | C5: 26.00
A6: 4.00 | B6: 26.00 | C6: 34.00
A7: 6.00 | B7: 32.00 | C7: 44.00
A8: 10.00 | B8: 45.00 | C8: 61.00
A9: 16.00 | B9: 61.00 | C9: 82.00
A10: 25.00 | B10: 80.00 | C10: 108.00
A11: 35.00 | B11: 100.00 | C11: 135.00
A12: 50.00 | B12: 125.00 | C12: 170.00
A13: 70.00 | B13: 160.00 | C13: 215.00
A14: 95.00 | B14: 195 | C14: 260
A16: Ampacity
A17: Size (mm²) | B17: Aluminium (A)pvc | C17: Aluminium (A) xlpe
A18: 1 | B18: N/A | C18: N/A
A19: 1.5 | B19: N/A | C19: N/A
A20: 2.5 | B20: 16 | C20: 20
A21: 4 | B21: 21 | C21: 26
A22: 6 | B22: 27 | C22: 34
A23: 10 | B23: 36 | C23: 46
A24: 16 | B24: 48 | C24: 61
A25: 25 | B25: 63 | C25: 80
A26: 35 | B26: 78 | C26: 100
A27: 50 | B27: 95 | C27: 125
A28: 70 | B28: 120 | C28: 160
A29: 95 | B29: 145 | C29: 195
A32: No. of loaded cables / circuits | B32: Grouping factor (Kgroup)
A33: 1 | B33: 1
A34: 2 | B34: 0.8
A35: 3 | B35: 0.7
A36: 4 | B36: 0.65
A37: 5 | B37: 0.65
A38: 6 | B38: 0.65
A39: 7 | B39: 0.6
A40: 8 | B40: 0.6
A41: 9 | B41: 0.6
A42: 10 | B42: 0.55
A43: 11 | B43: 0.55
A44: 12 | B44: 0.55
A45: >12 | B45: 0.5
A46: Loaded” means actually carrying current, not spare cables
A49: Starts per hour | B49: Condition | C49: Fs
A50: 1 | B50: Normal | C50: 1
A51: 2 | B51: Normal | C51: 1
A52: 3 | B52: Normal | C52: 1
A53: 4 | B53: Normal | C53: 1
A54: 5 | B54: Normal | C54: 1
A55: 6 | B55: Moderate | C55: 1.1
A56: 7 | B56: Moderate | C56: 1.1
A57: 8 | B57: Moderate | C57: 1.1
A58: 9 | B58: Moderate | C58: 1.1
A59: 10 | B59: Moderate | C59: 1.1
A60: 11 | B60: Moderate | C60: 1.1
A61: 12 | B61: Moderate | C61: 1.1
A62: 13 | B62: Moderate | C62: 1.1
A63: 14 | B63: Moderate | C63: 1.1
A64: 15 | B64: Moderate | C64: 1.1
A65: 16 | B65: Frequent | C65: 1.25
A66: 17 | B66: Frequent | C66: 1.25
A67: 18 | B67: Frequent | C67: 1.25
A68: 19 | B68: Frequent | C68: 1.25
A69: 20 | B69: Frequent | C69: 1.25
A70: 21 | B70: Frequent | C70: 1.25
A71: 22 | B71: Frequent | C71: 1.25
A72: 23 | B72: Frequent | C72: 1.25
A73: 24 | B73: Frequent | C73: 1.25
A74: 25 | B74: Frequent | C74: 1.25
A75: 26 | B75: Frequent | C75: 1.25
A76: 27 | B76: Frequent | C76: 1.25
A77: 28 | B77: Frequent | C77: 1.25
A78: 29 | B78: Frequent | C78: 1.25
A79: 30 | B79: Frequent | C79: 1.25
A80: > 30 | B80: Very frequent | C80: 1.4
A84: Installation method | B84: Installation factor (Kinst) | C84: Average Value
A85: Free air | B85: 1 | C85: 1
A86: PVC conduit (surface/concealed) | B86: 0.85 | C86: 0.85
A87: Buried direct | B87: 0.75–0.80 | C87: 0.775
A88: Underground duct | B88: 0.70–0.75 | C88: 0.725
A89: Embedded in concrete | B89: ≈ 0.70 | C89: 0.7
A92: Method | B92: Use this Kstart
A93: DOL | B93: 6
A94: Star Delta | B94: 2
A95: Soft Starter | B95: 3
A96: VFD | B96: 1.1
A98: Ambient Temp, PVC Insulation
A99: Ambient Temp (°C) | B99: Ktemp
A100: 30 | B100: 1
A101: 35 | B101: 0.94
A102: 40 | B102: 0.88
A103: 45 | B103: 0.82
A104: 50 | B104: 0.75
A105: 55 | B105: 0.67
A106: 60 | B106: 0.58
A107: 65 | B107: 0.5
A108: Ambient Temp, xlpe Insulation
A109: Ambient Temp (°C) | B109: Ktemp
A110: 30 | B110: 1
A111: 35 | B111: 0.96
A112: 40 | B112: 0.91
A113: 45 | B113: 0.87
A114: 50 | B114: 0.82
A115: 55 | B115: 0.76
A116: 60 | B116: 0.71
A117: 65 | B117: 0.65
A118: 70 | B118: 0.58
A119: 75 | B119: 0.5
A122: Load Type | B122: Nature | C122: Recommended Safety Factor
A123: Lighting (intermittent) | B123: Short duty | C123: 1.1
A124: Socket outlets | B124: Mixed | C124: 1.175
A125: Motors (continuous) | B125: Long duty | C125: 1.25
A126: Heaters | B126: Continuous | C126: 1.25
A127: Solar DC | B127: Continuous, hot | C127: 1.25
